[Event "94th Tradewise Hastings Congress"]
[Site "Hastings"]
[Date "2019.01.03"]
[Round "7"]
[White "Hawkins, Jonathan"]
[Black "Murphy, Conor E"]
[Result "1/2-1/2"]
[ECO "A14"]
[WhiteElo "2583"]
[BlackElo "2331"]
[Annotator "ChessBase"]
[PlyCount "46"]
[EventDate "2018.12.28"]
[EventType "swiss"]
[EventCountry "ENG"]
[SourceTitle "playchess.com"]
[Source "ChessBase"]
[SourceQuality "1"]
[TimeControl "40/6000+30:3000+30"]

1. Nf3 {[%emt 0:00:00]} d5 {[%emt 0:01:42]} 2. c4 {[%emt 0:00:00]} e6 {[%emt 0:00:22]} 3. g3 {[%emt 0:01:59]} Nf6 {[%emt 0:00:14]} 4. Bg2 {[%emt 0:00:09]} Be7 {[%emt 0:03:43]} 5. O-O {[%emt 0:00:27]} O-O {[%emt 0:00:06]} 6. d4 {[%emt 0:01:06]} dxc4 {[%emt 0:00:07]} 7. Qc2 {[%emt 0:02:18]} a6 {[%emt 0:00:15]} 8. a4 {[%emt 0:00:09]} Bd7 {[%emt 0:00:06]} 9. Qxc4 {[%emt 0:01:15]} Bc6 {[%emt 0:00:06]} 10. Bg5 {[%emt 0:00:32]} Bd5 {[%emt 0:04:58]} 11. Qd3 {[%emt 0:01:47]} c5 {[%emt 0:01:09]} 12. Nc3 {[%emt 0:01:36]} Bc6 {[%emt 0:00:06]} 13. Rfd1 {[%emt 0:01:30]} Qa5 {[%emt 0:05:19]} 14. Bd2 {[%emt 0:18:28]} Qd8 {[%emt 0:16:57]} 15. e4 {[%emt 0:08:25]} cxd4 {[%emt 0:01:43]} 16. Qxd4 {[%emt 0:00:07]} Nbd7 {[%emt 0:08:14]} 17. e5 {[%emt 0:00:56]} Bc5 {[%emt 0:04:58]} 18. Qf4 {[%emt 0:05:51]} Nd5 {[%emt 0:04:02]} 19. Nxd5 {[%emt 0:04:09]} Bxd5 {[%emt 0:00:13]} 20. Ng5 {[%emt 0:00:35]} h6 {[%emt 0:06:21]} 21. Ne4 {[%emt 0:00:39]} g5 {[%emt 0:06:28]} 22. Qg4 {[%emt 0:02:03]} f5 {[%emt 0:03:38]} 23. Qh5 {[%emt 0:06:41]} fxe4 {[%emt 0:05:59]} 1/2-1/2

[Event "94th Tradewise Hastings Congress"]
[Site "Hastings"]
[Date "2019.01.03"]
[Round "7"]
[White "Sulskis, Sarunas"]
[Black "Djuric, Stefan"]
[Result "1-0"]
[ECO "C11"]
[WhiteElo "2525"]
[BlackElo "2371"]
[Annotator "ChessBase"]
[PlyCount "73"]
[EventDate "2018.12.28"]
[EventType "swiss"]
[EventCountry "ENG"]
[SourceTitle "playchess.com"]
[Source "ChessBase"]
[SourceQuality "1"]
[TimeControl "40/6000+30:3000+30"]

1. e4 {[%emt 0:00:00]} e6 {[%emt 0:00:00]} 2. d4 {[%emt 0:00:54]} d5 {[%emt 0:00:00]} 3. Nc3 {[%emt 0:00:08]} Nf6 {[%emt 0:01:54]} 4. Bg5 {[%emt 0:03:40]} dxe4 {[%emt 0:03:16]} 5. Nxe4 {[%emt 0:00:12]} Nbd7 {[%emt 0:01:08]} 6. Nxf6+ {[%emt 0:07:01]} Nxf6 {[%emt 0:00:05]} 7. Nf3 {[%emt 0:00:11]} Be7 {[%emt 0:04:15]} 8. Bd3 {[%emt 0:05:56]} h6 {[%emt 0:09:10]} 9. Bd2 {[%emt 0:02:00]} b6 {[%emt 0:15:28]} 10. Qe2 {[%emt 0:06:24]} Bb7 {[%emt 0:02:23]} 11. O-O-O {[%emt 0:01:34]} O-O {[%emt 0:03:27]} 12. Kb1 {[%emt 0:02:15]} a5 {[%emt 0:07:01]} 13. Rhg1 {[%emt 0:06:46]} a4 {[%emt 0:14:04]} 14. a3 {[%emt 0:04:40]} b5 {[%emt 0:07:53]} 15. g4 {[%emt 0:04:34]} Qd5 16. Ne5 {[%emt 0:10:39]} Ne4 {[%emt 0:07:53]} 17. f3 {[%emt 0:05:02]} Nxd2+ {[%emt 0:06:10]} 18. Qxd2 {[%emt 0:06:54]} b4 {[%emt 0:03:32]} 19. g5 {[%emt 0:01:31]} hxg5 {[%emt 0:04:20]} 20. Rxg5 {[%emt 0:01:39]} Bxg5 {[%emt 0:00:16]} 21. Qxg5 {[%emt 0:00:09]} Qd8 {[%emt 0:00:12]} 22. Qh5 {[%emt 0:06:21]} f5 {[%emt 0:02:26]} 23. Ng6 {[%emt 0:03:28]} Qf6 {[%emt 0:02:34]} 24. Rg1 {[%emt 0:06:54]} bxa3 {[%emt 0:01:31]} 25. Bc4 {[%emt 0:04:19]} Bd5 {[%emt 0:03:55]} 26. Qh8+ {[%emt 0:06:03]} Kf7 {[%emt 0:00:07]} 27. Ne5+ {[%emt 0:00:05]} Ke8 {[%emt 0:00:50]} 28. Qh5+ {[%emt 0:00:54]} Kd8 {[%emt 0:00:05]} 29. Bxd5 {[%emt 0:00:57]} Ra6 {[%emt 0:00:36]} 30. f4 {[%emt 0:03:37]} Kc8 {[%emt 0:00:35]} 31. Bc4 {[%emt 0:01:06]} Rb6 {[%emt 0:00:11]} 32. Qf3 {[%emt 0:00:17]} c6 {[%emt 0:02:05]} 33. Qxa3 {[%emt 0:00:21]} Rd8 {[%emt 0:01:17]} 34. Rg6 {[%emt 0:02:12]} Qf8 {[%emt 0:00:20]} 35. Bxe6+ {[%emt 0:01:09]} Kb7 36. Qxf8 {[%emt 0:00:58]} Rxf8 {[%emt 0:00:39]} 37. Nd7 {[%emt 0:01:09]} 1-0

[Event "94th Tradewise Hastings Congress"]
[Site "Hastings"]
[Date "2019.01.03"]
[Round "7"]
[White "Kjartansson, Gudmundur"]
[Black "Byron, Alan M"]
[Result "1-0"]
[ECO "B90"]
[WhiteElo "2415"]
[BlackElo "2157"]
[Annotator "NA"]
[PlyCount "87"]
[EventDate "2018.12.28"]
[EventType "swiss"]
[EventCountry "ENG"]
[SourceTitle "playchess.com"]
[Source "ChessBase"]
[SourceQuality "1"]
[TimeControl "40/6000+30:3000+30"]

1. e4 {[%emt 0:06:06]} c5 {[%emt 0:00:55]} 2. Nf3 {[%emt 0:00:10]} d6 {[%emt 0:00:21]} 3. d4 {[%emt 0:00:04]} cxd4 {[%emt 0:00:07]} 4. Nxd4 {[%emt 0:00:03]} Nf6 {[%emt 0:00:08]} 5. Nc3 {[%emt 0:00:04]} a6 {[%emt 0:00:30]} 6. Be3 {[%emt 0:00:37]} e5 {[%emt 0:01:18]} 7. Nb3 {[%emt 0:00:05]} Be6 {[%emt 0:00:27]} 8. h3 {[%emt 0:00:20]} h5 {[%emt 0:01:58]} 9. f4 {[%emt 0:07:10]} exf4 {[%emt 0:18:44]} 10. Bxf4 {[%emt 0:01:16]} Nc6 $14 {[%emt 0:00:03] LiveBook: 10 Games} 11. Qe2 {[%emt 0:02:01]} Ne5 {[%emt 0:04:39]} 12. O-O-O {[%emt 0:01:15]} Qc7 {[%emt 0:00:31]} 13. Nd4 {[%emt 0:15:57]} Be7 {[%emt 0:04:21]} 14. Qe3 {[%emt 0:02:35]} Rc8 {[%emt 0:04:55]} 15. Be2 {[%emt 0:05:05]} b5 {[%emt 0:04:57]} 16. a3 {[%emt 0:01:09]} Qa5 {[%emt 0:16:33]} 17. Nxe6 {[%emt 0:34:48]} fxe6 {[%emt 0:00:56]} 18. Qa7 {[%emt 0:13:24]} b4 {[%emt 0:30:59]} 19. Qxa6 {[%emt 0:01:14]} Qxa6 {[%emt 0:03:47]} 20. Bxa6 {[%emt 0:00:07]} bxc3 {[%emt 0:01:07]} 21. Bxc8 {[%emt 0:01:18]} cxb2+ {[%emt 0:00:07]} 22. Kxb2 {[%emt 0:00:33]} Kf7 {[%emt 0:00:07]} 23. Ba6 {[%emt 0:02:36]} Rb8+ {[%emt 0:03:48]} 24. Ka2 {[%emt 0:00:38]} Nxe4 {[%emt 0:04:17]} 25. Bxe5 {[%emt 0:00:22]} dxe5 {[%emt 0:00:02]} 26. Rhf1+ {[%emt 0:00:22]} Nf6 {[%emt 0:00:49]} 27. Rb1 {[%emt 0:00:57]} Ra8 {[%emt 0:00:52]} 28. Rb6 {[%emt 0:00:26]} e4 {[%emt 0:01:06]} 29. a4 {[%emt 0:02:31]} Rd8 {[%emt 0:01:54]} 30. Bc4 {[%emt 0:03:42]} Rd4 {[%emt 0:01:07]} 31. Kb3 {[%emt 0:01:01]} Bd8 {[%emt 0:00:55]} 32. Rxe6 {[%emt 0:00:32]} Kg6 {[%emt 0:00:29]} 33. Re5 {[%emt 0:02:22]} Rd2 {[%emt 0:03:01]} 34. a5 {[%emt 0:01:07]} Rxg2 {[%emt 0:00:31]} 35. a6 {[%emt 0:00:04]} Rg3+ {[%emt 0:00:19]} 36. Kb4 {[%emt 0:02:33]} Bb6 {[%emt 0:00:46]} 37. Re7 {[%emt 0:00:34]} Rxh3 {[%emt 0:00:27]} 38. a7 {[%emt 0:00:16]} Bxa7 {[%emt 0:00:28]} 39. Rxa7 {[%emt 0:00:05]} Rg3 {[%emt 0:00:13]} 40. Bf7+ {[%emt 0:01:05]} Kg5 {[%emt 0:00:15]} 41. Ra5+ {[%emt 0:51:26]} Kh6 {[%emt 0:04:17]} 42. c4 {[%emt 0:00:00]} e3 {[%emt 0:02:54]} 43. Re5 {[%emt 0:00:00]} Rh3 {[%emt 0:03:14]} 44. Rff5 {[%emt 0:00:00]} 1-0

[Event "94th Tradewise Hastings Congress"]
[Site "Hastings"]
[Date "2019.01.03"]
[Round "7"]
[White "Cherniaev, Alexander"]
[Black "Petrov, Martin"]
[Result "1/2-1/2"]
[ECO "B23"]
[WhiteElo "2393"]
[BlackElo "2472"]
[Annotator "ChessBase"]
[PlyCount "35"]
[EventDate "2018.12.28"]
[EventType "swiss"]
[EventCountry "ENG"]
[SourceTitle "playchess.com"]
[Source "ChessBase"]
[SourceQuality "1"]
[TimeControl "40/6000+30:3000+30"]

1. e4 {[%emt 0:07:02]} c5 {[%emt 0:00:00]} 2. Nc3 {[%emt 0:00:39]} g6 {[%emt 0:01:58]} 3. d4 {[%emt 0:00:07]} cxd4 {[%emt 0:02:19]} 4. Qxd4 {[%emt 0:00:06]} Nf6 {[%emt 0:00:08]} 5. Nf3 {[%emt 0:00:47]} Nc6 {[%emt 0:00:19]} 6. Qa4 {[%emt 0:00:02]} d6 {[%emt 0:08:36]} 7. e5 {[%emt 0:00:36]} dxe5 {[%emt 0:03:35]} 8. Nxe5 {[%emt 0:00:15]} Bg7 {[%emt 0:00:09]} 9. Bb5 {[%emt 0:01:55]} O-O {[%emt 0:00:10]} 10. Nxc6 {[%emt 0:00:27]} bxc6 {[%emt 0:00:07]} 11. Bxc6 {[%emt 0:00:06]} Bd7 {[%emt 0:01:59]} 12. O-O {[%emt 0:02:35]} Rc8 {[%emt 0:05:23]} 13. Bxd7 {[%emt 0:00:40]} Qxd7 {[%emt 0:00:04]} 14. Be3 {[%emt 0:09:49]} Qxa4 {[%emt 0:19:17]} 15. Nxa4 {[%emt 0:00:49]} Rxc2 {[%emt 0:01:16]} 16. Rfc1 {[%emt 0:01:20]} Rfc8 {[%emt 0:01:52]} 17. Rxc2 {[%emt 0:00:34]} Rxc2 {[%emt 0:00:04]} 18. Rc1 {[%emt 0:16:13]} 1/2-1/2

[Event "94th Tradewise Hastings Congress"]
[Site "Hastings"]
[Date "2019.01.03"]
[Round "7"]
[White "Bates, Richard A"]
[Black "Derakhshani, Borna"]
[Result "1-0"]
[ECO "A48"]
[WhiteElo "2372"]
[BlackElo "2325"]
[Annotator "NA"]
[PlyCount "81"]
[EventDate "2018.12.28"]
[EventType "swiss"]
[EventCountry "ENG"]
[SourceTitle "playchess.com"]
[Source "ChessBase"]
[SourceQuality "1"]
[TimeControl "40/6000+30:3000+30"]

1. d4 {[%emt 0:00:00]} Nf6 {[%emt 0:06:08]} 2. Nf3 {[%emt 0:00:00]} g6 {[%emt 0:00:11]} 3. c4 {[%emt 0:00:50]} Bg7 {[%emt 0:00:14]} 4. g3 {[%emt 0:00:07]} b6 {[%emt 0:00:24]} 5. Bg2 {[%emt 0:00:24]} Bb7 {[%emt 0:00:04]} 6. O-O {[%emt 0:00:38]} O-O {[%emt 0:00:09]} 7. d5 {[%emt 0:11:30]} c5 8. Nc3 {[%emt 0:00:45]} d6 {[%emt 0:07:08]} 9. e4 {[%emt 0:01:34]} Nbd7 $14 {[%emt 0:00:13] LiveBook: 11 Games} 10. Bf4 {[%emt 0:10:36]} Nh5 {[%emt 0:09:58]} 11. Be3 {[%emt 0:02:39]} a6 {[%emt 0:02:14]} 12. a4 {[%emt 0:00:34]} Nhf6 {[%emt 0:25:15]} 13. h3 {[%emt 0:07:24]} Ne8 {[%emt 0:01:13]} 14. Qd2 {[%emt 0:00:58]} Nc7 {[%emt 0:08:56]} 15. Rab1 {[%emt 0:05:58]} Bc8 {[%emt 0:11:29]} 16. b4 {[%emt 0:07:10]} a5 {[%emt 0:04:09]} 17. bxc5 {[%emt 0:02:49]} bxc5 {[%emt 0:00:21]} 18. Bh6 {[%emt 0:04:12]} Na6 {[%emt 0:01:16]} 19. Nb5 {[%emt 0:01:47]} Nb4 {[%emt 0:03:08]} 20. Bxg7 {[%emt 0:08:45]} Kxg7 {[%emt 0:00:04]} 21. Qc3+ {[%emt 0:00:58]} Kg8 {[%emt 0:03:23]} 22. e5 {[%emt 0:02:58]} Nb6 {[%emt 0:01:42]} 23. Ra1 {[%emt 0:13:42]} Bf5 {[%emt 0:05:19]} 24. Nd2 {[%emt 0:00:33]} dxe5 {[%emt 0:03:40]} 25. Qxe5 {[%emt 0:01:49]} Bd3 {[%emt 0:04:20]} 26. Rfc1 {[%emt 0:02:30]} Bc2 {[%emt 0:01:50]} 27. Nc3 {[%emt 0:08:14]} Qd7 {[%emt 0:03:31]} 28. Bf1 {[%emt 0:04:20]} Rac8 {[%emt 0:03:07]} 29. Nce4 {[%emt 0:05:04]} f6 {[%emt 0:00:52]} 30. Qc3 {[%emt 0:02:04]} Nxa4 {[%emt 0:01:07]} 31. Qa3 {[%emt 0:01:28]} Qf5 {[%emt 0:00:01]} 32. Rxc2 {[%emt 0:00:25]} Nxc2 {[%emt 0:00:11]} 33. Qxa4 {[%emt 0:00:02]} Nxa1 {[%emt 0:00:09]} 34. Qxa1 {[%emt 0:00:09]} Qe5 {[%emt 0:01:02]} 35. Qxa5 {[%emt 0:00:13]} Qd4 {[%emt 0:00:13]} 36. Qc3 {[%emt 0:00:32]} e5 {[%emt 0:03:53]} 37. dxe6 {[%emt 0:00:56]} f5 {[%emt 0:00:33]} 38. Qxd4 {[%emt 0:00:15]} cxd4 {[%emt 0:00:01]} 39. Nd6 {[%emt 0:00:19]} Rc6 {[%emt 0:00:02]} 40. c5 {[%emt 0:01:18]} Rxc5 {[%emt 0:00:34]} 41. e7 {[%emt 0:50:59]} 1-0

[Event "94th Tradewise Hastings Congress"]
[Site "Hastings"]
[Date "2019.01.03"]
[Round "7"]
[White "Sarkar, Justin"]
[Black "Lyell, Mark"]
[Result "1/2-1/2"]
[ECO "A90"]
[WhiteElo "2332"]
[BlackElo "2317"]
[Annotator "NA"]
[PlyCount "21"]
[EventDate "2018.12.28"]
[EventType "swiss"]
[EventCountry "ENG"]
[SourceTitle "playchess.com"]
[Source "ChessBase"]
[SourceQuality "1"]
[TimeControl "40/6000+30:3000+30"]

1. d4 {[%emt 0:06:33]} f5 {[%emt 0:00:00]} 2. c4 {[%emt 0:01:16]} Nf6 {[%emt 0:00:00]} 3. g3 {[%emt 0:00:44]} e6 {[%emt 0:00:10]} 4. Bg2 {[%emt 0:00:41]} d5 {[%emt 0:00:09]} 5. Nh3 {[%emt 0:01:08]} Bd6 {[%emt 0:00:10]} 6. O-O {[%emt 0:02:39]} O-O {[%emt 0:00:32]} 7. b3 {[%emt 0:05:29]} c6 {[%emt 0:12:20]} 8. Ba3 {[%emt 0:02:37]} Bxa3 {[%emt 0:00:15]} 9. Nxa3 {[%emt 0:00:03]} Qe7 {[%emt 0:01:50] LiveBook: 24 Games} 10. Qc1 {[%emt 0:01:03]} Nbd7 $11 {[%emt 0:03:07]} 11. Nf4 {[%emt 0:01:02]} 1/2-1/2

[Event "94th Tradewise Hastings Congress"]
[Site "Hastings"]
[Date "2019.01.03"]
[Round "7"]
[White "Taylor, Adam C"]
[Black "Korneev, Oleg"]
[Result "1/2-1/2"]
[ECO "A06"]
[WhiteElo "2331"]
[BlackElo "2550"]
[Annotator "ChessBase"]
[PlyCount "42"]
[EventDate "2018.12.28"]
[EventType "swiss"]
[EventCountry "ENG"]
[SourceTitle "playchess.com"]
[Source "ChessBase"]
[SourceQuality "1"]
[TimeControl "40/6000+30:3000+30"]

1. Nf3 {[%emt 0:00:00]} d5 {[%emt 0:05:12]} 2. g3 {[%emt 0:02:12]} c6 {[%emt 0:00:18]} 3. c4 {[%emt 0:00:22]} Nf6 {[%emt 0:01:29]} 4. Bg2 {[%emt 0:02:06]} Bf5 {[%emt 0:03:07]} 5. cxd5 {[%emt 0:02:05]} cxd5 {[%emt 0:00:04]} 6. O-O {[%emt 0:00:06]} Nc6 {[%emt 0:00:04]} 7. d3 {[%emt 0:00:19]} e6 {[%emt 0:00:22]} 8. Be3 {[%emt 0:01:47]} Be7 {[%emt 0:02:35]} 9. Qb3 {[%emt 0:00:08]} Qd7 {[%emt 0:00:18]} 10. Nd4 {[%emt 0:03:11]} Bg4 {[%emt 0:10:44]} 11. Rc1 {[%emt 0:16:56]} O-O {[%emt 0:00:54]} 12. Nxc6 {[%emt 0:00:13]} bxc6 {[%emt 0:00:07]} 13. Qc2 {[%emt 0:00:22]} Rfc8 {[%emt 0:12:02]} 14. h3 {[%emt 0:00:26]} Bh5 {[%emt 0:00:17]} 15. g4 {[%emt 0:00:28]} Bg6 {[%emt 0:02:56]} 16. Bc5 {[%emt 0:00:25]} Bxc5 {[%emt 0:02:54]} 17. Qxc5 {[%emt 0:00:07]} Qb7 {[%emt 0:00:04]} 18. b3 {[%emt 0:07:57]} Nd7 {[%emt 0:07:46]} 19. Qd6 {[%emt 0:02:40]} c5 {[%emt 0:01:14]} 20. e4 {[%emt 0:05:12]} dxe4 {[%emt 0:07:44]} 21. dxe4 {[%emt 0:01:29]} Rd8 {[%emt 0:21:59]} 1/2-1/2

[Event "94th Tradewise Hastings Congress"]
[Site "Hastings"]
[Date "2019.01.03"]
[Round "7"]
[White "Kalavannan, Koby"]
[Black "Snape, Ian L"]
[Result "1-0"]
[ECO "A43"]
[WhiteElo "2328"]
[BlackElo "2112"]
[Annotator "NA"]
[PlyCount "71"]
[EventDate "2018.12.28"]
[EventType "swiss"]
[EventCountry "ENG"]
[SourceTitle "playchess.com"]
[Source "ChessBase"]
[SourceQuality "1"]
[TimeControl "40/6000+30:3000+30"]

1. d4 {[%emt 0:01:12]} c5 {[%emt 0:00:00]} 2. c3 {[%emt 0:00:19]} cxd4 {[%emt 0:00:00]} 3. cxd4 {[%emt 0:00:05]} d5 {[%emt 0:00:00]} 4. Nc3 {[%emt 0:00:48]} Nc6 {[%emt 0:00:00]} 5. Bf4 {[%emt 0:00:52]} Nf6 {[%emt 0:00:11] LiveBook: 3212 Games} (5... e5 $5 6. Bxe5 Nxe5 7. dxe5 d4 $11) 6. e3 {[%emt 0:00:26]} a6 {[%emt 0:00:07]} 7. Bd3 {[%emt 0:01:00]} e6 {[%emt 0:03:23]} 8. Rc1 {[%emt 0:06:24]} Bd7 {[%emt 0:02:52]} 9. Nf3 {[%emt 0:05:56]} Nh5 {[%emt 0:03:54]} 10. Bg5 {[%emt 0:00:30]} Be7 {[%emt 0:06:31]} 11. Bxe7 $14 {[%emt 0:02:51]} Qxe7 {[%emt 0:00:18]} 12. a3 {[%emt 0:10:27]} b5 {[%emt 0:11:03]} 13. Nxb5 {[%emt 0:04:33]} O-O {[%emt 0:18:24]} 14. Nc7 {[%emt 0:11:10]} Rac8 {[%emt 0:01:38]} 15. Nxa6 {[%emt 0:01:01]} e5 {[%emt 0:00:35]} 16. Nxe5 {[%emt 0:05:51]} Nxe5 {[%emt 0:00:31]} 17. dxe5 {[%emt 0:00:36]} Qxe5 {[%emt 0:01:07]} 18. Nc5 {[%emt 0:11:03]} Bc6 {[%emt 0:25:46]} 19. O-O {[%emt 0:01:38]} Nf6 {[%emt 0:00:13]} 20. Ba6 {[%emt 0:02:43]} Rb8 {[%emt 0:02:24]} 21. Nd3 {[%emt 0:01:13]} Qd6 {[%emt 0:00:19]} 22. Nb4 {[%emt 0:01:03]} Bd7 {[%emt 0:04:12]} 23. Be2 {[%emt 0:00:21]} h5 {[%emt 0:03:58]} 24. Qd4 {[%emt 0:11:58]} Bb5 {[%emt 0:04:29]} 25. Bxb5 {[%emt 0:01:08]} Rxb5 {[%emt 0:00:19]} 26. Rc6 {[%emt 0:00:46]} Qd7 {[%emt 0:01:32]} 27. Rfc1 {[%emt 0:00:48]} Re8 {[%emt 0:00:34]} 28. h3 {[%emt 0:04:16]} Ne4 {[%emt 0:00:44]} 29. Qd3 {[%emt 0:03:12]} Rb7 {[%emt 0:03:39]} 30. R1c2 {[%emt 0:09:24]} Rd8 {[%emt 0:02:24]} 31. f3 {[%emt 0:01:44]} Ng5 {[%emt 0:02:05]} 32. R6c5 Nxf3+ {[%emt 0:01:15]} 33. gxf3 {[%emt 0:01:36]} Qxh3 {[%emt 0:00:10]} 34. Nxd5 {[%emt 0:03:21]} Qg3+ {[%emt 0:00:48]} 35. Rg2 {[%emt 0:00:18]} Rxd5 {[%emt 0:00:04]} 36. Rc8+ {[%emt 0:00:06]} 1-0

[Event "94th Tradewise Hastings Congress"]
[Site "Hastings"]
[Date "2019.01.03"]
[Round "7"]
[White "Peek, Marcel"]
[Black "Willson, Ollie"]
[Result "1-0"]
[ECO "E11"]
[WhiteElo "2293"]
[BlackElo "2081"]
[Annotator "NA"]
[PlyCount "55"]
[EventDate "2018.12.28"]
[EventType "swiss"]
[EventCountry "ENG"]
[SourceTitle "playchess.com"]
[Source "ChessBase"]
[SourceQuality "1"]
[TimeControl "40/6000+30:3000+30"]

1. d4 {[%emt 0:00:00]} Nf6 {[%emt 0:00:00]} 2. Nf3 {[%emt 0:00:00]} e6 {[%emt 0:00:00]} 3. c4 {[%emt 0:00:00]} Bb4+ {[%emt 0:00:00]} 4. Bd2 {[%emt 0:00:07]} c5 {[%emt 0:00:05]} 5. Bxb4 {[%emt 0:00:46]} cxb4 {[%emt 0:00:04]} 6. Nbd2 {[%emt 0:00:26]} O-O {[%emt 0:01:26]} 7. e3 {[%emt 0:00:20]} d6 {[%emt 0:01:17]} 8. Qc2 {[%emt 0:01:10]} b6 {[%emt 0:12:08]} 9. Bd3 {[%emt 0:00:36]} Bb7 {[%emt 0:00:47]} 10. g4 $11 {[%emt 0:06:04] LiveBook: 3 Games} g6 {[%emt 0:11:40]} 11. h4 {[%emt 0:05:45]} Qe7 {[%emt 0:13:17]} 12. h5 {[%emt 0:23:29]} e5 {[%emt 0:20:12]} 13. g5 {[%emt 0:24:21]} Nxh5 {[%emt 0:07:20]} 14. Rxh5 {[%emt 0:00:27]} gxh5 {[%emt 0:00:04]} 15. Bxh7+ {[%emt 0:02:22]} Kh8 {[%emt 0:01:26]} 16. Be4 {[%emt 0:02:10]} exd4 {[%emt 0:18:49]} 17. Bxb7 {[%emt 0:10:57]} Qxb7 {[%emt 0:00:16]} 18. Ke2 {[%emt 0:00:08]} f5 {[%emt 0:03:23]} 19. Nxd4 {[%emt 0:04:04]} Nc6 {[%emt 0:05:32]} 20. N2f3 {[%emt 0:15:05]} Nxd4+ {[%emt 0:00:26]} 21. Nxd4 {[%emt 0:00:07]} Qg2 {[%emt 0:01:51]} 22. Nf3 {[%emt 0:01:20]} Rae8 {[%emt 0:04:32]} 23. Qd3 {[%emt 0:03:50]} Qg4 {[%emt 0:01:19]} 24. Rh1 {[%emt 0:01:18]} Re6 {[%emt 0:01:18]} 25. Rh4 {[%emt 0:00:26]} Qg2 {[%emt 0:01:21]} 26. Rxh5+ {[%emt 0:00:48]} Kg8 {[%emt 0:01:05]} 27. Qd5 {[%emt 0:00:18]} Rfe8 {[%emt 0:00:44]} 28. Rh6 1-0

[Event "94th Tradewise Hastings Congress"]
[Site "Hastings"]
[Date "2019.01.03"]
[Round "7"]
[White "Stefansson, Vignir Vatnar"]
[Black "Lalic, Bogdan"]
[Result "1/2-1/2"]
[ECO "A48"]
[WhiteElo "2266"]
[BlackElo "2420"]
[Annotator "NA"]
[PlyCount "42"]
[EventDate "2018.12.28"]
[EventType "swiss"]
[EventCountry "ENG"]
[SourceTitle "playchess.com"]
[Source "ChessBase"]
[SourceQuality "1"]
[TimeControl "40/6000+30:3000+30"]

1. d4 {[%emt 0:06:34]} Nf6 {[%emt 0:00:00]} 2. Nf3 {[%emt 0:01:23]} g6 {[%emt 0:00:00]} 3. c4 {[%emt 0:00:22]} Bg7 {[%emt 0:00:00]} 4. Nc3 {[%emt 0:00:05]} d5 {[%emt 0:00:00]} 5. g3 {[%emt 0:06:01]} O-O {[%emt 0:00:26]} 6. Bg2 {[%emt 0:00:07]} dxc4 {[%emt 0:00:40]} 7. O-O {[%emt 0:03:35]} c6 {[%emt 0:00:15]} 8. a4 {[%emt 0:07:50]} Na6 {[%emt 0:04:14]} 9. a5 {[%emt 0:06:00] LiveBook: 8 Games} Ne8 $11 {[%emt 0:05:44]} 10. Qa4 {[%emt 0:05:23]} Nd6 {[%emt 0:00:22]} 11. Bf4 {[%emt 0:03:27]} Bd7 {[%emt 0:06:49]} 12. Bxd6 {[%emt 0:01:43]} exd6 {[%emt 0:00:07]} 13. Qxc4 {[%emt 0:00:05]} d5 {[%emt 0:04:26]} 14. Qb3 {[%emt 0:04:41]} Rb8 {[%emt 0:00:11]} 15. Rfc1 {[%emt 0:00:46]} Qe7 {[%emt 0:04:41]} 16. e3 {[%emt 0:01:16]} Nc7 {[%emt 0:00:23]} 17. Qa3 {[%emt 0:06:30]} Qxa3 {[%emt 0:00:09]} 18. Rxa3 {[%emt 0:00:08]} Rfe8 {[%emt 0:00:11]} 19. b4 {[%emt 0:05:03]} a6 {[%emt 0:06:16]} 20. Na4 {[%emt 0:04:37]} Nb5 {[%emt 0:00:10]} 21. Rb3 {[%emt 0:00:11]} Nd6 {[%emt 0:00:50]} 1/2-1/2

[Event "94th Tradewise Hastings Congress"]
[Site "Hastings"]
[Date "2019.01.03"]
[Round "7"]
[White "Willow, Jonah B"]
[Black "Brown, Thomas"]
[Result "1/2-1/2"]
[ECO "B06"]
[WhiteElo "2218"]
[BlackElo "2068"]
[Annotator "NA"]
[PlyCount "84"]
[EventDate "2018.12.28"]
[EventType "swiss"]
[EventCountry "ENG"]
[SourceTitle "playchess.com"]
[Source "ChessBase"]
[SourceQuality "1"]
[TimeControl "40/6000+30:3000+30"]

1. e4 {[%emt 0:00:00]} g6 {[%emt 0:00:00]} 2. d4 {[%emt 0:00:00]} Bg7 {[%emt 0:00:00]} 3. Nc3 {[%emt 0:00:00]} c6 {[%emt 0:00:00]} 4. f4 {[%emt 0:00:27]} d5 {[%emt 0:00:00]} 5. e5 {[%emt 0:00:05]} Nh6 {[%emt 0:00:13]} 6. Be2 {[%emt 0:02:02]} f6 {[%emt 0:00:35] LiveBook: 61 Games} 7. Nf3 {[%emt 0:00:22]} Bg4 {[%emt 0:03:20]} 8. O-O {[%emt 0:00:44]} O-O {[%emt 0:00:28]} 9. h3 {[%emt 0:00:06]} Bxf3 {[%emt 0:00:19]} 10. Bxf3 {[%emt 0:00:04]} Nf5 {[%emt 0:03:02]} 11. g4 {[%emt 0:04:46]} Ng3 {[%emt 0:00:48]} 12. Rf2 {[%emt 0:11:17]} f5 {[%emt 0:01:49]} 13. Kg2 {[%emt 0:03:43]} Ne4 {[%emt 0:00:55]} 14. Bxe4 $11 {[%emt 0:01:32]} dxe4 {[%emt 0:29:16]} 15. Qe2 {[%emt 0:06:56]} Na6 {[%emt 0:06:43]} 16. Be3 {[%emt 0:03:43]} Nc7 {[%emt 0:03:42]} 17. Rd1 {[%emt 0:02:27]} e6 {[%emt 0:02:23]} 18. Na4 {[%emt 0:01:07]} Rf7 {[%emt 0:02:16]} 19. b3 {[%emt 0:07:43]} b5 {[%emt 0:04:04]} 20. Nb2 {[%emt 0:08:14]} Nd5 {[%emt 0:03:58]} 21. Rd2 {[%emt 0:20:03]} fxg4 {[%emt 0:02:47]} 22. hxg4 {[%emt 0:00:53]} Qh4 {[%emt 0:03:02]} 23. Rd1 {[%emt 0:19:41]} Raf8 {[%emt 0:04:19]} 24. Rdf1 {[%emt 0:03:30]} Nc3 {[%emt 0:08:37]} 25. Rh1 {[%emt 0:00:34]} Qxh1+ {[%emt 0:00:52]} 26. Kxh1 {[%emt 0:00:16]} Nxe2 {[%emt 0:00:04]} 27. Rxe2 {[%emt 0:00:07]} g5 {[%emt 0:06:37]} 28. fxg5 {[%emt 0:03:46]} Rf1+ {[%emt 0:00:25]} 29. Kg2 {[%emt 0:00:11]} Ra1 {[%emt 0:02:42]} 30. a4 {[%emt 0:00:36]} Rb1 {[%emt 0:00:06]} 31. c4 {[%emt 0:00:54]} Rf3 {[%emt 0:00:29]} 32. axb5 {[%emt 0:00:55]} cxb5 {[%emt 0:00:30]} 33. cxb5 {[%emt 0:02:42]} Rxb2 {[%emt 0:01:05]} 34. Rxb2 {[%emt 0:00:02]} Rxe3 {[%emt 0:00:13]} 35. Ra2 {[%emt 0:01:59]} Rd3 {[%emt 0:02:33]} 36. Rxa7 {[%emt 0:02:56]} Rxd4 {[%emt 0:00:07]} 37. Re7 {[%emt 0:01:27]} Rd2+ {[%emt 0:07:04]} 38. Kf1 {[%emt 0:00:56]} e3 {[%emt 0:03:10]} 39. b6 {[%emt 0:00:48]} Rf2+ {[%emt 0:04:49]} 40. Ke1 {[%emt 0:00:39]} Bxe5 {[%emt 0:04:52]} 41. Rxe6 {[%emt 0:50:38]} Bg3 {[%emt 0:15:05]} 42. Rxe3 {[%emt 0:00:00]} Rf3+ 1/2-1/2